[Event "CCT Chessable Masters D-I 2024"]
[Site "Online"]
[Date "2024.02.03"]
[Round "2"]
[White "Bigfish"]
[Black "Carlsen, Magnus"]
[Result "1-0"]
[ECO "E35"]
[WhiteElo "2802"]
[BlackElo "2830"]
[Annotator "ChessBase"]
[PlyCount "291"]
[EventDate "2024.01.12"]
[EventType "k.o."]
[EventCountry "NET"]
[SourceTitle "playchess.com"]
[Source "ChessBase"]
[SourceQuality "1"]
[TimeControl "600+2"]

1. d4 {[%emt 0:00:02]} Nf6 {[%emt 0:00:04]} 2. c4 {[%emt 0:00:02]} e6 {[%emt 0:00:01]} 3. Nc3 {[%emt 0:00:01]} Bb4 {[%emt 0:00:01]} 4. Qc2 {[%emt 0:00:01]} d5 {[%emt 0:00:04]} 5. cxd5 {[%emt 0:00:09]} exd5 {[%emt 0:00:07]} 6. Bg5 {[%emt 0:00:05]} h6 {[%emt 0:00:02]} 7. Bh4 {[%emt 0:00:05]} Nc6 {[%emt 0:00:27]} 8. e3 {[%emt 0:00:04]} g5 {[%emt 0:00:02]} 9. Bg3 {[%emt 0:00:02]} h5 {[%emt 0:00:03]} 10. h4 {[%emt 0:00:34]} Ne4 {[%emt 0:00:04]} 11. Bh2 {[%emt 0:00:06]} Qe7 {[%emt 0:00:38]} 12. Bb5 {[%emt 0:00:16]} Bf5 {[%emt 0:00:46]} 13. Nge2 {[%emt 0:01:03]} gxh4 {[%emt 0:01:09]} 14. Qb3 {[%emt 0:00:59]} O-O-O {[%emt 0:01:32]} 15. a3 {[%emt 0:00:07]} Bxc3+ {[%emt 0:00:30]} 16. bxc3 {[%emt 0:00:06]} Rh6 {[%emt 0:01:09]} 17. Bf4 {[%emt 0:00:57]} Rg6 {[%emt 0:00:05]} 18. f3 {[%emt 0:00:32]} Ng5 {[%emt 0:00:36]} 19. Kf2 {[%emt 0:00:59]} h3 {[%emt 0:00:01]} 20. Ng3 {[%emt 0:00:02]} hxg2 {[%emt 0:00:37]} 21. Nxf5 {[%emt 0:00:10]} gxh1=N+ {[%emt 0:00:04]} 22. Rxh1 {[%emt 0:00:02]} Qd7 {[%emt 0:00:39]} 23. Bd3 {[%emt 0:00:41]} Ne6 {[%emt 0:00:07]} 24. Bg3 {[%emt 0:00:06]} Rdg8 {[%emt 0:00:03]} 25. Rxh5 {[%emt 0:00:07]} Rg5 {[%emt 0:00:15]} 26. Rh6 {[%emt 0:00:24]} Nexd4 {[%emt 0:00:36]} 27. cxd4 {[%emt 0:00:24]} Rxf5 {[%emt 0:00:00]} 28. f4 {[%emt 0:00:47]} Ne7 {[%emt 0:00:02]} 29. Qc2 {[%emt 0:00:17]} Kb8 {[%emt 0:00:40]} 30. Bh4 {[%emt 0:00:12]} f6 {[%emt 0:00:20]} 31. Rh7 {[%emt 0:00:03]} Rxf4+ {[%emt 0:00:01]} 32. exf4 {[%emt 0:00:03]} Qg4 {[%emt 0:00:00]} 33. Ke3 {[%emt 0:00:01]} Qh3+ {[%emt 0:00:02]} 34. Kd2 {[%emt 0:00:08]} Qh2+ {[%emt 0:00:20]} 35. Kc3 {[%emt 0:00:04]} Qxf4 {[%emt 0:00:01]} 36. Rxe7 {[%emt 0:00:22]} Qxh4 {[%emt 0:00:01]} 37. Qg2 {[%emt 0:00:01]} Qg5 {[%emt 0:00:02]} 38. Qh2 {[%emt 0:00:11]} Qc1+ {[%emt 0:00:04]} 39. Kb3 {[%emt 0:00:01]} a6 {[%emt 0:00:01]} 40. Bc2 {[%emt 0:00:07]} Rc8 {[%emt 0:00:02]} 41. Qg3 {[%emt 0:00:11]} Qg5 {[%emt 0:00:01]} 42. Qc3 {[%emt 0:00:09]} Qf4 {[%emt 0:00:01]} 43. Qc5 {[%emt 0:00:05]} Rd8 {[%emt 0:00:03]} 44. Rf7 {[%emt 0:00:03]} Qd6 {[%emt 0:00:01]} 45. Kc3 {[%emt 0:00:13]} Qxc5+ {[%emt 0:00:02]} 46. dxc5 {[%emt 0:00:01]} c6 {[%emt 0:00:00]} 47. Kb4 {[%emt 0:00:06]} Rh8 {[%emt 0:00:05]} 48. Ka5 {[%emt 0:00:01]} Ka7 {[%emt 0:00:03]} 49. Ba4 {[%emt 0:00:01]} Rc8 {[%emt 0:00:04]} 50. Rxf6 {[%emt 0:00:03]} Rc7 {[%emt 0:00:00]} 51. Rh6 {[%emt 0:00:09]} Re7 {[%emt 0:00:01]} 52. Rh5 {[%emt 0:00:02]} Rg7 {[%emt 0:00:04]} 53. Bc2 {[%emt 0:00:03]} Rg3 {[%emt 0:00:01]} 54. Kb4 {[%emt 0:00:02]} a5+ {[%emt 0:00:01]} 55. Kxa5 {[%emt 0:00:02]} Rc3 {[%emt 0:00:02]} 56. Rh2 {[%emt 0:00:06]} Rxc5+ {[%emt 0:00:01]} 57. Kb4 {[%emt 0:00:00]} Rc4+ {[%emt 0:00:00]} 58. Kb3 {[%emt 0:00:01]} Rf4 {[%emt 0:00:03]} 59. Rh7 {[%emt 0:00:01]} Rf3+ {[%emt 0:00:01]} 60. Kb4 {[%emt 0:00:02]} Rf4+ {[%emt 0:00:01]} 61. Kb3 {[%emt 0:00:01]} Rf3+ {[%emt 0:00:01]} 62. Kb4 {[%emt 0:00:03]} Kb6 {[%emt 0:00:02]} 63. Rh6 {[%emt 0:00:03]} Rf4+ {[%emt 0:00:01]} 64. Kb3 {[%emt 0:00:00]} Kc5 {[%emt 0:00:01]} 65. Rh7 {[%emt 0:00:03]} Rf3+ {[%emt 0:00:00]} 66. Kb2 {[%emt 0:00:01]} Kb6 {[%emt 0:00:01]} 67. Bd1 {[%emt 0:00:03]} Rf2+ {[%emt 0:00:02]} 68. Kb3 {[%emt 0:00:00]} Rf1 {[%emt 0:00:01]} 69. Bg4 {[%emt 0:00:02]} Rf8 {[%emt 0:00:00]} 70. a4 {[%emt 0:00:01]} Rg8 {[%emt 0:00:02]} 71. Bf5 {[%emt 0:00:05]} Rf8 {[%emt 0:00:02]} 72. Bd3 {[%emt 0:00:05]} Rf3 {[%emt 0:00:02]} 73. Kc3 {[%emt 0:00:00]} Rf4 {[%emt 0:00:02]} 74. a5+ {[%emt 0:00:01]} Kxa5 {[%emt 0:00:01]} 75. Rxb7 {[%emt 0:00:01]} Rh4 {[%emt 0:00:02]} 76. Be2 {[%emt 0:00:03]} Re4 {[%emt 0:00:05]} 77. Bf1 {[%emt 0:00:02]} Rf4 {[%emt 0:00:01]} 78. Bd3 {[%emt 0:00:01]} Rh4 {[%emt 0:00:01]} 79. Rb8 {[%emt 0:00:01]} Rf4 {[%emt 0:00:04]} 80. Be2 {[%emt 0:00:02]} Re4 {[%emt 0:00:01]} 81. Bh5 {[%emt 0:00:02]} Rc4+ {[%emt 0:00:01]} 82. Kb3 {[%emt 0:00:01]} Rc5 {[%emt 0:00:11]} 83. Be2 {[%emt 0:00:04]} Rc1 {[%emt 0:00:00]} 84. Bd3 {[%emt 0:00:01]} Rh1 {[%emt 0:00:01]} 85. Kc3 {[%emt 0:00:08]} Rh4 {[%emt 0:00:01]} 86. Bf5 {[%emt 0:00:02]} Rc4+ {[%emt 0:00:05]} 87. Kd3 {[%emt 0:00:01]} Rb4 {[%emt 0:00:00]} 88. Rc8 {[%emt 0:00:02]} Kb6 {[%emt 0:00:01]} 89. Bd7 {[%emt 0:00:02]} Rc4 {[%emt 0:00:01]} 90. Be8 {[%emt 0:00:01]} Kb7 {[%emt 0:00:01]} 91. Rd8 {[%emt 0:00:01]} Kc7 {[%emt 0:00:01]} 92. Rd7+ {[%emt 0:00:01]} Kb6 {[%emt 0:00:01]} 93. Rd6 {[%emt 0:00:01]} Kc7 {[%emt 0:00:01]} 94. Rh6 {[%emt 0:00:01]} Kb6 {[%emt 0:00:00]} 95. Bf7 {[%emt 0:00:02]} Kb5 {[%emt 0:00:02]} 96. Rh1 {[%emt 0:00:07]} Rf4 {[%emt 0:00:03]} 97. Be8 {[%emt 0:00:02]} Rf3+ {[%emt 0:00:10]} 98. Kd4 {[%emt 0:00:02]} Rf4+ {[%emt 0:00:00]} 99. Kd3 {[%emt 0:00:00]} Rf3+ {[%emt 0:00:02]} 100. Kd2 {[%emt 0:00:00]} Rf4 {[%emt 0:00:03]} 101. Rh6 {[%emt 0:00:05]} Rd4+ {[%emt 0:00:03]} 102. Kc3 {[%emt 0:00:01]} Rc4+ {[%emt 0:00:01]} 103. Kd3 {[%emt 0:00:01]} Kb6 {[%emt 0:00:03]} 104. Bg6 {[%emt 0:00:03]} Kc5 {[%emt 0:00:03]} 105. Bf5 {[%emt 0:00:01]} Rd4+ {[%emt 0:00:03]} 106. Ke3 {[%emt 0:00:02]} Rc4 {[%emt 0:00:00]} 107. Bd7 {[%emt 0:00:01]} Kb6 {[%emt 0:00:01]} 108. Kf3 {[%emt 0:00:04]} Kc7 {[%emt 0:00:02]} 109. Bf5 {[%emt 0:00:01]} Kb6 {[%emt 0:00:03]} 110. Rf6 {[%emt 0:00:02]} Kc5 {[%emt 0:00:03]} 111. Bg6 {[%emt 0:00:01]} Kb6 {[%emt 0:00:01]} 112. Kg3 {[%emt 0:00:01]} Kc5 {[%emt 0:00:02]} 113. Bh5 {[%emt 0:00:01]} Re4 {[%emt 0:00:04]} 114. Bg4 {[%emt 0:00:03]} Re7 {[%emt 0:00:01]} 115. Kf4 {[%emt 0:00:01]} Re4+ {[%emt 0:00:05]} 116. Kf5 {[%emt 0:00:01]} Re7 {[%emt 0:00:02]} 117. Bh5 {[%emt 0:00:01]} d4 {[%emt 0:00:03]} 118. Bf3 {[%emt 0:00:02]} Rc7 {[%emt 0:00:03]} 119. Ke4 {[%emt 0:00:02]} Re7+ {[%emt 0:00:05]} 120. Kd3 {[%emt 0:00:01]} Re3+ {[%emt 0:00:00]} 121. Kd2 {[%emt 0:00:01]} Rc3 {[%emt 0:00:02]} 122. Bxc6 {[%emt 0:00:04]} Re3 {[%emt 0:00:01]} 123. Bd7 {[%emt 0:00:03]} Kd5 {[%emt 0:00:01]} 124. Bg4 {[%emt 0:00:01]} Ke5 {[%emt 0:00:01]} 125. Rf8 {[%emt 0:00:02]} Ke4 {[%emt 0:00:02]} 126. Be2 {[%emt 0:00:09]} Ra3 {[%emt 0:00:03]} 127. Bc4 {[%emt 0:00:02]} Re3 {[%emt 0:00:02]} 128. Ba2 {[%emt 0:00:04]} Ke5 {[%emt 0:00:02]} 129. Bb1 {[%emt 0:00:02]} Kd5 {[%emt 0:00:01]} 130. Bd3 {[%emt 0:00:01]} Ke5 {[%emt 0:00:01]} 131. Kc2 {[%emt 0:00:00]} Kd5 {[%emt 0:00:01]} 132. Rf4 {[%emt 0:00:00]} Ke5 {[%emt 0:00:01]} 133. Rf5+ {[%emt 0:00:01]} Kd6 {[%emt 0:00:03]} 134. Rh5 {[%emt 0:00:00]} Rg3 {[%emt 0:00:02]} 135. Rh8 {[%emt 0:00:02]} Re3 {[%emt 0:00:03]} 136. Rd8+ {[%emt 0:00:02]} Ke5 {[%emt 0:00:00]} 137. Rd7 {[%emt 0:00:01]} Rg3 {[%emt 0:00:03]} 138. Re7+ {[%emt 0:00:01]} Kd5 {[%emt 0:00:02]} 139. Re8 {[%emt 0:00:03]} Re3 {[%emt 0:00:01]} 140. Rc8 {[%emt 0:00:03]} Rg3 {[%emt 0:00:06]} 141. Bc4+ {[%emt 0:00:01]} Ke5 {[%emt 0:00:05]} 142. Re8+ {[%emt 0:00:05]} Kd6 {[%emt 0:00:01]} 143. Kd2 {[%emt 0:00:01]} Re3 {[%emt 0:00:02]} 144. Rg8 {[%emt 0:00:03]} Ke5 {[%emt 0:00:00]} 145. Bd3 {[%emt 0:00:02]} Kd5 {[%emt 0:00:03]} 146. Rg4 {[%emt 0:00:01]} 1-0

[Event "CCT Chessable Masters D-I 2024"]
[Site "Online"]
[Date "2024.02.03"]
[Round "2"]
[White "Bigfish"]
[Black "Carlsen, Magnus"]
[Result "1/2-1/2"]
[ECO "D36"]
[WhiteElo "2797"]
[BlackElo "2830"]
[Annotator "RC"]
[PlyCount "154"]
[EventDate "2024.01.12"]
[EventType "k.o."]
[EventCountry "NET"]
[SourceTitle "playchess.com"]
[Source "ChessBase"]
[SourceQuality "1"]
[TimeControl "600+2"]

1. d4 {[%emt 0:00:04]} Nf6 {[%emt 0:00:06]} 2. c4 {[%emt 0:00:01]} e6 {[%emt 0:00:01]} 3. Nc3 {[%emt 0:00:01]} d5 {[%emt 0:00:02]} 4. cxd5 {[%emt 0:00:05]} exd5 {[%emt 0:00:01]} 5. Bg5 {[%emt 0:00:02]} Be7 {[%emt 0:00:05]} 6. e3 {[%emt 0:00:01]} h6 {[%emt 0:00:02]} 7. Bh4 {[%emt 0:00:09]} O-O {[%emt 0:00:29]} 8. Bd3 {[%emt 0:00:19]} c6 {[%emt 0:00:03]} 9. Qc2 {[%emt 0:00:16]} Ne8 {[%emt 0:00:01]} 10. Bg3 {[%emt 0:00:13]} Nd6 {[%emt 0:00:16]} 11. Nf3 {[%emt 0:00:09]} Re8 {[%emt 0:01:14]} 12. O-O {[%emt 0:00:07]} Be6 {[%emt 0:00:08]} 13. Ne2 {[%emt 0:00:47]} Qc8 {[%emt 0:00:29]} 14. Be5 {[%emt 0:00:23]} Bf5 {[%emt 0:00:30]} 15. Ng3 {[%emt 0:00:02]} Bxd3 {[%emt 0:00:04]} 16. Qxd3 {[%emt 0:00:00]} Nd7 {[%emt 0:00:07]} 17. Rac1 {[%emt 0:00:17]} Bf8 {[%emt 0:00:34]} 18. b3 {[%emt 0:00:26]} a5 {[%emt 0:00:20]} 19. a4 {[%emt 0:00:10]} Qd8 {[%emt 0:00:03]} 20. Rfd1 {[%emt 0:00:10]} Qb6 {[%emt 0:00:25]} 21. Bf4 {[%emt 0:00:15]} Nf6 {[%emt 0:00:10]} 22. h4 {[%emt 0:00:18]} Rad8 {[%emt 0:00:10]} 23. Qc2 {[%emt 0:00:27]} Nde4 {[%emt 0:00:29]} 24. Nxe4 {[%emt 0:00:12]} Nxe4 {[%emt 0:00:08]} 25. Ne5 {[%emt 0:00:08]} Bd6 {[%emt 0:00:12]} 26. Re1 {[%emt 0:00:39]} Qc7 {[%emt 0:00:06]} 27. Nd3 {[%emt 0:00:21]} Bxf4 {[%emt 0:00:01]} 28. Nxf4 {[%emt 0:00:00]} g5 {[%emt 0:00:08]} 29. hxg5 {[%emt 0:00:06]} hxg5 {[%emt 0:00:01]} 30. Nd3 {[%emt 0:00:00]} Kg7 {[%emt 0:00:11]} 31. f3 {[%emt 0:00:25]} Nd6 {[%emt 0:00:45]} 32. Ne5 {[%emt 0:00:05]} Qe7 {[%emt 0:00:33]} 33. Kf2 {[%emt 0:00:12]} Qf6 {[%emt 0:00:13]} 34. Rh1 {[%emt 0:00:57]} Rh8 {[%emt 0:00:02]} 35. g4 {[%emt 0:00:08]} Rh6 {[%emt 0:00:28]} 36. Rh5 {[%emt 0:00:11]} Rdh8 {[%emt 0:00:02]} 37. Rch1 {[%emt 0:00:05]} Rxh5 {[%emt 0:00:01]} 38. gxh5 {[%emt 0:00:07]} Qf5 {[%emt 0:00:10]} 39. Qxf5 {[%emt 0:00:58]} Nxf5 {[%emt 0:00:01]} 40. Nd7 {[%emt 0:00:01]} f6 {[%emt 0:00:19]} 41. Nc5 {[%emt 0:00:11]} b6 {[%emt 0:00:07]} 42. Nd7 {[%emt 0:00:06]} Kf7 {[%emt 0:01:13]} 43. Nxb6 {[%emt 0:00:21]} Rb8 {[%emt 0:00:03]} 44. h6 {[%emt 0:00:00]} Nh4 {[%emt 0:00:40]} 45. h7 {[%emt 0:00:10]} Kg7 {[%emt 0:00:01]} 46. Nd7 {[%emt 0:00:10]} Rd8 {[%emt 0:00:01]} 47. Nc5 {[%emt 0:00:03]} Kxh7 {[%emt 0:00:01]} 48. Nb7 {[%emt 0:00:14]} Ra8 {[%emt 0:00:01]} 49. Rc1 {[%emt 0:00:01]} Nf5 {[%emt 0:00:06]} 50. Rxc6 {[%emt 0:00:04]} Kg7 {[%emt 0:00:00]} 51. Rc5 {[%emt 0:00:08]} Rh8 {[%emt 0:00:03]} 52. Rxd5 {[%emt 0:00:07]} Rh2+ {[%emt 0:00:01]} 53. Kg1 {[%emt 0:00:02]} Rg2+ {[%emt 0:00:01]} 54. Kxg2 {[%emt 0:00:03]} Nxe3+ {[%emt 0:00:00]} 55. Kf2 {[%emt 0:00:00]} Nxd5 {[%emt 0:00:00]} 56. Nxa5 {[%emt 0:00:02]} Kf7 {[%emt 0:00:00]} 57. Nc4 {[%emt 0:00:02]} Ke6 {[%emt 0:00:00]} 58. a5 {[%emt 0:00:02]} Nb4 {[%emt 0:00:01]} 59. Nb6 {[%emt 0:00:04]} f5 {[%emt 0:00:02]} 60. Ke3 {[%emt 0:00:11]} Kd6 {[%emt 0:00:01]} 61. Kd2 {[%emt 0:00:07]} Kc6 {[%emt 0:00:12]} 62. Nc4 {[%emt 0:00:05]} g4 {[%emt 0:00:06]} 63. fxg4 {[%emt 0:00:16]} fxg4 {[%emt 0:00:01]} 64. Ke3 {[%emt 0:00:04]} g3 {[%emt 0:00:03]} 65. Kf3 {[%emt 0:00:08]} Kd5 {[%emt 0:00:01]} 66. Kxg3 {[%emt 0:00:03]} Kxd4 {[%emt 0:00:00]} 67. Kf3 {[%emt 0:00:02]} Kc5 {[%emt 0:00:02]} 68. Ke3 {[%emt 0:00:01]} Nc6 {[%emt 0:00:03]} 69. Kd3 {[%emt 0:00:01]} Kb4 {[%emt 0:00:05]} 70. a6 {[%emt 0:00:03]} Kb5 {[%emt 0:00:01]} 71. a7 {[%emt 0:00:06]} Nxa7 {[%emt 0:00:01]} 72. Ne5 {[%emt 0:00:01]} Kb4 {[%emt 0:00:02]} 73. Kc2 {[%emt 0:00:01]} Nb5 {[%emt 0:00:00]} 74. Nd3+ {[%emt 0:00:01]} Ka3 {[%emt 0:00:02]} 75. b4 {[%emt 0:00:01]} Nc7 {[%emt 0:00:02]} 76. Kc3 {[%emt 0:00:01]} Nd5+ {[%emt 0:00:00]} 77. Kc4 {[%emt 0:00:00]} Nxb4 {[%emt 0:00:01]} 1/2-1/2

[Event "CCT Chessable Masters D-I 2024"]
[Site "Online"]
[Date "2024.02.03"]
[Round "2"]
[White "Martinez Alcantara, Jose Eduardo"]
[Black "Lazavik, Denis"]
[Result "0-1"]
[ECO "C54"]
[WhiteElo "2610"]
[BlackElo "2566"]
[Annotator "ChessBase"]
[PlyCount "50"]
[EventDate "2024.01.12"]
[EventType "k.o."]
[EventCountry "NET"]
[SourceTitle "playchess.com"]
[Source "ChessBase"]
[SourceQuality "1"]
[TimeControl "600+2"]

1. e4 {[%emt 0:00:02]} e5 {[%emt 0:00:03]} 2. Nf3 {[%emt 0:00:01]} Nc6 {[%emt 0:00:00]} 3. Bc4 {[%emt 0:00:01]} Bc5 {[%emt 0:00:01]} 4. c3 {[%emt 0:00:02]} Nf6 {[%emt 0:00:01]} 5. d3 {[%emt 0:00:01]} O-O {[%emt 0:00:03]} 6. Bg5 {[%emt 0:00:04]} Be7 {[%emt 0:00:11]} 7. Nbd2 {[%emt 0:00:04]} Na5 {[%emt 0:00:33]} 8. Bb5 {[%emt 0:00:07]} d6 {[%emt 0:00:06]} 9. Ba4 {[%emt 0:00:07]} a6 {[%emt 0:00:24]} 10. Bh4 {[%emt 0:00:14]} Nh5 {[%emt 0:00:13]} 11. Bg3 {[%emt 0:00:04]} g6 {[%emt 0:00:05]} 12. b4 {[%emt 0:00:40]} Nc6 {[%emt 0:00:02]} 13. Bb3 {[%emt 0:00:01]} Kh8 {[%emt 0:00:09]} 14. h3 {[%emt 0:00:11]} f5 {[%emt 0:00:24]} 15. Bh2 {[%emt 0:00:06]} f4 {[%emt 0:00:16]} 16. Qe2 {[%emt 0:00:53]} Bf6 {[%emt 0:00:12]} 17. Rg1 {[%emt 0:00:28]} Qe7 {[%emt 0:01:21]} 18. a4 {[%emt 0:01:34]} Be6 {[%emt 0:00:16]} 19. Bc2 {[%emt 0:00:02]} d5 {[%emt 0:00:35]} 20. exd5 {[%emt 0:00:19]} Bxd5 {[%emt 0:00:00]} 21. Ne4 {[%emt 0:00:01]} Bg7 {[%emt 0:00:02]} 22. Nfd2 {[%emt 0:00:09]} Nf6 {[%emt 0:00:51]} 23. f3 {[%emt 0:00:39]} Bxe4 {[%emt 0:00:19]} 24. Nxe4 {[%emt 0:00:38]} Nd5 {[%emt 0:00:28]} 25. Rh1 {[%emt 0:00:01]} Nxc3 {[%emt 0:00:36]} 0-1

[Event "CCT Chessable Masters D-I 2024"]
[Site "Online"]
[Date "2024.02.03"]
[Round "2"]
[White "Martinez Alcantara, Jose Eduardo"]
[Black "Lazavik, Denis"]
[Result "1/2-1/2"]
[ECO "C65"]
[WhiteElo "2610"]
[BlackElo "2566"]
[Annotator "ChessBase"]
[PlyCount "159"]
[EventDate "2024.01.12"]
[EventType "k.o."]
[EventCountry "NET"]
[SourceTitle "playchess.com"]
[Source "ChessBase"]
[SourceQuality "1"]
[TimeControl "600+2"]

1. e4 {[%emt 0:00:05]} e5 {[%emt 0:00:04]} 2. Nf3 {[%emt 0:00:02]} Nc6 {[%emt 0:00:00]} 3. Bb5 {[%emt 0:00:00]} Nf6 {[%emt 0:00:01]} 4. d3 {[%emt 0:00:02]} Bc5 {[%emt 0:00:02]} 5. O-O {[%emt 0:00:01]} Nd4 {[%emt 0:00:02]} 6. Nxd4 {[%emt 0:00:02]} Bxd4 {[%emt 0:00:02]} 7. Ba4 {[%emt 0:00:01]} c6 {[%emt 0:00:07]} 8. c3 {[%emt 0:00:01]} Bb6 {[%emt 0:00:01]} 9. Na3 {[%emt 0:00:01]} d6 {[%emt 0:00:05]} 10. Bc2 {[%emt 0:00:04]} Be6 {[%emt 0:00:09]} 11. Nc4 {[%emt 0:00:32]} Bc7 {[%emt 0:00:05]} 12. Qe2 {[%emt 0:01:17]} Qe7 {[%emt 0:00:18]} 13. a4 {[%emt 0:00:40]} h6 {[%emt 0:00:18]} 14. Ne3 {[%emt 0:00:44]} d5 {[%emt 0:00:25]} 15. Qf3 {[%emt 0:00:02]} O-O {[%emt 0:00:18]} 16. Nf5 {[%emt 0:00:02]} Bxf5 {[%emt 0:00:03]} 17. Qxf5 {[%emt 0:00:00]} Rad8 {[%emt 0:00:37]} 18. exd5 {[%emt 0:00:31]} cxd5 {[%emt 0:00:17]} 19. Re1 {[%emt 0:00:04]} Qd6 {[%emt 0:00:20]} 20. g3 {[%emt 0:00:14]} Rfe8 {[%emt 0:00:08]} 21. Bd2 {[%emt 0:00:12]} Qc6 {[%emt 0:00:56]} 22. a5 {[%emt 0:00:17]} Re6 {[%emt 0:00:15]} 23. Ba4 {[%emt 0:00:30]} Qd6 {[%emt 0:00:08]} 24. Bb3 {[%emt 0:00:03]} Qc6 {[%emt 0:00:27]} 25. c4 {[%emt 0:00:27]} dxc4 {[%emt 0:01:05]} 26. Bxc4 {[%emt 0:00:04]} Re7 {[%emt 0:00:18]} 27. Be3 {[%emt 0:01:31]} a6 {[%emt 0:00:14]} 28. b4 {[%emt 0:00:36]} Nd5 {[%emt 0:01:25]} 29. Bd2 {[%emt 0:00:31]} Qd6 {[%emt 0:01:04]} 30. Rab1 {[%emt 0:00:13]} b5 {[%emt 0:00:05]} 31. axb6 {[%emt 0:00:08]} Bxb6 {[%emt 0:00:00]} 32. Re2 {[%emt 0:01:05]} Bd4 {[%emt 0:00:12]} 33. b5 {[%emt 0:00:07]} axb5 {[%emt 0:00:15]} 34. Rxb5 {[%emt 0:00:04]} Qf6 {[%emt 0:00:11]} 35. Rxd5 {[%emt 0:00:24]} Qxf5 {[%emt 0:00:05]} 36. Rxd8+ {[%emt 0:00:00]} Kh7 {[%emt 0:00:00]} 37. Rxd4 {[%emt 0:00:01]} Qf3 {[%emt 0:00:28]} 38. Rde4 {[%emt 0:00:03]} f6 {[%emt 0:00:01]} 39. Re1 {[%emt 0:00:06]} Rc7 {[%emt 0:00:04]} 40. R4e3 {[%emt 0:00:03]} Qf5 {[%emt 0:00:03]} 41. Bd5 {[%emt 0:00:04]} Qd7 {[%emt 0:00:03]} 42. Be4+ {[%emt 0:00:01]} Kh8 {[%emt 0:00:01]} 43. R3e2 {[%emt 0:00:02]} f5 {[%emt 0:00:04]} 44. Bg2 {[%emt 0:00:07]} Rc2 {[%emt 0:00:16]} 45. Ba5 {[%emt 0:00:16]} Rxe2 {[%emt 0:00:02]} 46. Rxe2 {[%emt 0:00:00]} e4 {[%emt 0:00:00]} 47. dxe4 {[%emt 0:00:03]} Qb5 {[%emt 0:00:01]} 48. Re3 {[%emt 0:00:09]} Qxa5 {[%emt 0:00:02]} 49. exf5 {[%emt 0:00:01]} Qa1+ {[%emt 0:00:08]} 50. Bf1 {[%emt 0:00:01]} Kg8 {[%emt 0:00:00]} 51. h4 {[%emt 0:00:01]} Kf7 {[%emt 0:00:03]} 52. Kg2 {[%emt 0:00:01]} Qa8+ {[%emt 0:00:02]} 53. Kh2 {[%emt 0:00:04]} Qa2 {[%emt 0:00:01]} 54. Be2 {[%emt 0:00:01]} Kf6 {[%emt 0:00:04]} 55. g4 {[%emt 0:00:01]} Kf7 {[%emt 0:00:03]} 56. Kg2 {[%emt 0:00:02]} Qd5+ {[%emt 0:00:02]} 57. Bf3 {[%emt 0:00:00]} Qd4 {[%emt 0:00:01]} 58. Re4 {[%emt 0:00:01]} Qd8 {[%emt 0:00:02]} 59. g5 {[%emt 0:00:07]} hxg5 {[%emt 0:00:11]} 60. Re6 {[%emt 0:00:05]} g4 {[%emt 0:00:11]} 61. Bxg4 {[%emt 0:00:00]} Qd5+ {[%emt 0:00:01]} 62. Kh2 {[%emt 0:00:05]} Kf8 {[%emt 0:00:05]} 63. Bh5 {[%emt 0:00:02]} g6 {[%emt 0:00:03]} 64. Bxg6 {[%emt 0:00:02]} Qf3 {[%emt 0:00:01]} 65. Re8+ {[%emt 0:00:03]} Kg7 {[%emt 0:00:00]} 66. Kg1 {[%emt 0:00:02]} Qg4+ {[%emt 0:00:01]} 67. Kf1 {[%emt 0:00:00]} Qc4+ {[%emt 0:00:03]} 68. Re2 {[%emt 0:00:03]} Qxh4 {[%emt 0:00:01]} 69. Re3 {[%emt 0:00:02]} Qh1+ {[%emt 0:00:02]} 70. Ke2 {[%emt 0:00:00]} Qd5 {[%emt 0:00:03]} 71. Re7+ {[%emt 0:00:04]} Kf6 {[%emt 0:00:01]} 72. Re6+ {[%emt 0:00:00]} Kg5 {[%emt 0:00:00]} 73. Re3 {[%emt 0:00:05]} Kf6 {[%emt 0:00:01]} 74. f4 {[%emt 0:00:02]} Qg2+ {[%emt 0:00:02]} 75. Kd3 {[%emt 0:00:01]} Qf1+ {[%emt 0:00:00]} 76. Ke4 {[%emt 0:00:03]} Qc4+ {[%emt 0:00:01]} 77. Kf3 {[%emt 0:00:01]} Qf1+ {[%emt 0:00:00]} 78. Ke4 {[%emt 0:00:00]} Qc4+ {[%emt 0:00:01]} 79. Kf3 {[%emt 0:00:01]} Qf1+ {[%emt 0:00:01]} 80. Ke4 {[%emt 0:00:00]} 1/2-1/2

[Event "CCT Chessable Masters D-I 2024"]
[Site "Online"]
[Date "2024.02.03"]
[Round "2"]
[White "Lazavik, Denis"]
[Black "Martinez Alcantara, Jose Eduardo"]
[Result "1-0"]
[ECO "E16"]
[WhiteElo "2566"]
[BlackElo "2610"]
[Annotator "ChessBase"]
[PlyCount "87"]
[EventDate "2024.01.12"]
[EventType "k.o."]
[EventCountry "NET"]
[SourceTitle "playchess.com"]
[Source "ChessBase"]
[SourceQuality "1"]
[TimeControl "600+2"]

1. d4 {[%emt 0:00:02]} Nf6 {[%emt 0:00:02]} 2. c4 {[%emt 0:00:01]} e6 {[%emt 0:00:01]} 3. Nf3 {[%emt 0:00:01]} b6 {[%emt 0:00:01]} 4. g3 {[%emt 0:00:02]} Bb7 {[%emt 0:00:01]} 5. Bg2 {[%emt 0:00:01]} Bb4+ {[%emt 0:00:00]} 6. Bd2 {[%emt 0:00:01]} Bxd2+ {[%emt 0:00:02]} 7. Qxd2 {[%emt 0:00:00]} O-O {[%emt 0:00:00]} 8. O-O {[%emt 0:00:01]} d6 {[%emt 0:00:01]} 9. Rd1 {[%emt 0:00:02]} Nbd7 {[%emt 0:00:03]} 10. Qe3 {[%emt 0:00:04]} Qe7 {[%emt 0:00:28]} 11. Nc3 {[%emt 0:00:03]} Rfd8 {[%emt 0:00:13]} 12. Qd3 {[%emt 0:00:28]} c5 {[%emt 0:00:42]} 13. d5 {[%emt 0:00:11]} exd5 {[%emt 0:00:55]} 14. cxd5 {[%emt 0:00:02]} a6 {[%emt 0:00:01]} 15. a4 {[%emt 0:00:07]} Re8 {[%emt 0:00:01]} 16. e3 {[%emt 0:01:04]} Bc8 {[%emt 0:00:15]} 17. h3 {[%emt 0:00:12]} Rb8 {[%emt 0:00:10]} 18. Rab1 {[%emt 0:01:35]} Ne5 {[%emt 0:00:52]} 19. Nxe5 {[%emt 0:00:04]} Qxe5 {[%emt 0:00:00]} 20. e4 {[%emt 0:00:04]} g5 {[%emt 0:00:40]} 21. b4 {[%emt 0:00:51]} cxb4 {[%emt 0:00:49]} 22. Rxb4 {[%emt 0:00:03]} a5 {[%emt 0:00:01]} 23. Rbb1 {[%emt 0:00:19]} Nd7 {[%emt 0:00:01]} 24. Qe3 {[%emt 0:00:51]} Nc5 {[%emt 0:00:20]} 25. f4 {[%emt 0:00:03]} gxf4 {[%emt 0:00:10]} 26. gxf4 {[%emt 0:00:00]} Qf6 {[%emt 0:00:16]} 27. Re1 {[%emt 0:00:21]} Bd7 {[%emt 0:00:26]} 28. e5 {[%emt 0:00:10]} Qg6 {[%emt 0:00:03]} 29. Kh2 {[%emt 0:00:08]} Qd3 {[%emt 0:01:01]} 30. Rbd1 {[%emt 0:00:28]} Qxe3 {[%emt 0:00:13]} 31. Rxe3 {[%emt 0:00:01]} Bxa4 {[%emt 0:00:34]} 32. Rg1 {[%emt 0:00:38]} Kh8 {[%emt 0:00:29]} 33. e6 {[%emt 0:00:14]} f5 {[%emt 0:01:06]} 34. Bf3 {[%emt 0:00:20]} Re7 {[%emt 0:00:09]} 35. Bh5 {[%emt 0:00:23]} Be8 {[%emt 0:00:40]} 36. Bxe8 {[%emt 0:00:05]} Rbxe8 {[%emt 0:00:00]} 37. Nb5 {[%emt 0:00:01]} Rd8 {[%emt 0:00:01]} 38. Nd4 {[%emt 0:00:09]} Rf8 {[%emt 0:00:01]} 39. Rg5 {[%emt 0:00:16]} Ne4 {[%emt 0:00:02]} 40. Nxf5 {[%emt 0:00:27]} Nxg5 {[%emt 0:00:16]} 41. Nxe7 {[%emt 0:00:01]} Rxf4 {[%emt 0:00:01]} 42. Ng6+ {[%emt 0:00:01]} hxg6 {[%emt 0:00:01]} 43. e7 {[%emt 0:00:01]} Rf2+ {[%emt 0:00:05]} 44. Kg1 {[%emt 0:00:04]} 1-0